bitfinex/quotes_BTCUSD_20220111
["timestamp","ask_amount","ask_price","bid_price","bid_amount"]
[1641913255014,0.059857,41763.0,41757.0,0.00072205]
[1641913255212,0.09215454,41762.0,41759.0,0.00072203]
[1641913255411,0.059857,41763.0,41762.0,0.005]
[1641913255613,0.00160486,41767.0,41763.0,0.30195785]
[1641913255814,0.09283824,41766.0,41764.0,0.373336]
[1641913256012,0.00160486,41767.0,41764.0,0.373336]
[1641913256013,0.15085549,41765.0,41764.0,0.373336]
[1641913256216,0.00160486,41767.0,41762.0,0.005]
[1641913256217,0.09870897,41763.0,41762.0,0.005]
[1641913256413,0.04602427,41767.0,41762.0,0.005]
[1641913256619,0.059871,41765.0,41763.0,0.373336]
[1641913256860,0.00160486,41767.0,41764.0,0.37460102]
[1641913257161,0.00160486,41767.0,41758.0,0.26294326]
[1641913257360,0.00160486,41767.0,41756.0,0.71191608]
[1641913257361,0.00160486,41767.0,41766.0,1.60563067]
[1641913257563,0.00160486,41767.0,41766.0,2.45484519]
[1641913257761,0.00047667,41772.0,41767.0,1.3012873]
[1641913257958,0.00047667,41772.0,41768.0,0.373336]
[1641913258159,0.00047667,41772.0,41767.0,1.3012873]
[1641913258560,0.00047667,41772.0,41768.0,0.373336]
[1641913258760,0.00047678,41772.0,41771.0,1.56159779]
[1641913258961,0.00047678,41772.0,41771.0,1.573336]
[1641913259363,0.71598715,41782.0,41772.0,1.673336]
[1641913259566,0.00031797,41791.0,41780.0,0.001201]
[1641913259765,0.0287904,41792.0,41787.0,0.0012298]
[1641913259766,0.06110337,41792.0,41787.0,0.0012298]
[1641913259964,0.06110337,41792.0,41791.0,0.6]
[1641913259965,0.05610337,41792.0,41791.0,0.6]
[1641913260170,0.05610337,41792.0,41783.0,1.3]
[1641913260171,0.04611424,41791.0,41785.0,0.41224016]
[1641913260612,0.04295923,41790.0,41786.0,1.3]
[1641913260813,0.04295923,41790.0,41787.0,0.373336]
[1641913260814,0.03687695,41790.0,41787.0,0.373336]
[1641913261011,0.054831,41791.0,41787.0,0.69783317]
[1641913261211,0.054831,41791.0,41787.0,0.373336]
[1641913261212,0.119657,41789.0,41787.0,0.373336]
[1641913261412,0.119657,41789.0,41787.0,0.379336]
[1641913261612,0.119657,41789.0,41787.0,0.006]
[1641913261811,0.59127737,41788.0,41785.0,0.00121808]
[1641913262014,0.30984937,41788.0,41783.0,0.1]
[1641913262212,0.33017279,41788.0,41783.0,0.1]
[1641913262613,0.059827,41787.0,41780.0,0.00127528]
[1641913262817,0.00065662,41790.0,41785.0,0.00124661]
[1641913263013,0.00065662,41790.0,41787.0,0.471319]
[1641913263214,0.00065662,41790.0,41788.0,0.373336]
[1641913263814,0.00065662,41790.0,41788.0,0.34565571]
[1641913264014,0.13997062,41795.0,41789.0,1.173336]
[1641913264258,0.13997062,41795.0,41790.0,0.6]
[1641913264459,0.13497062,41795.0,41790.0,0.6]
[1641913264659,0.059817,41792.0,41790.0,0.6]
[1641913264860,0.059817,41792.0,41791.0,0.373336]
[1641913265161,0.059817,41792.0,41790.0,0.6]
[1641913265363,0.059817,41792.0,41791.0,0.376336]
[1641913265562,0.059817,41792.0,41791.0,0.003]
[1641913265762,0.059817,41792.0,41791.0,0.92972332]
[1641913265763,0.03091364,41792.0,41791.0,0.92972332]
[1641913265964,0.03841646,41797.0,41796.0,1.58445466]
[1641913266164,6.3e-07,41797.0,41796.0,1.95906771]
[1641913266364,6.3e-07,41797.0,41796.0,2.05906771]
[1641913266562,6.3e-07,41799.0,41796.0,2.05906771]
[1641913266767,0.01216779,41800.0,41799.0,0.00125393]
[1641913267063,0.01216779,41800.0,41799.0,1.99958116]
[1641913267263,0.01216779,41800.0,41799.0,2.04958116]
[1641913267463,0.01216779,41800.0,41799.0,2.10558116]
[1641913267664,0.01,41800.0,41799.0,2.4827751]
[1641913268112,0.01,41800.0,41799.0,0.85778387]
[1641913268316,0.01,41800.0,41799.0,0.006]
[1641913268514,0.001,41804.0,41785.0,1.3]
[1641913268714,0.001,41804.0,41802.0,0.00122854]
[1641913269513,0.001,41804.0,41802.0,0.006]
[1641913269514,0.2509156,41804.0,41802.0,0.006]
[1641913269712,0.04255451,41803.0,41802.0,0.006]
[1641913269915,0.001,41804.0,41802.0,0.379062]
[1641913270112,0.180454,41804.0,41802.0,0.379062]
[1641913270715,0.001,41804.0,41803.0,0.34018245]
[1641913270914,0.00165414,41807.0,41804.0,0.373062]
[1641913271120,0.06075117,41811.0,41803.0,0.34018245]
[1641913271121,0.002,41814.0,41808.0,0.373062]
[1641913271314,0.00178976,41811.0,41809.0,1.3]
[1641913271515,9.76e-06,41811.0,41810.0,1.97082298]
[1641913271769,6.471e-05,41828.0,41810.0,2.24116298]
[1641913271968,6.471e-05,41828.0,41819.0,0.00120262]
[1641913272169,6.471e-05,41828.0,41824.0,0.00125055]
[1641913272170,0.30529185,41828.0,41824.0,0.00125055]
[1641913272368,0.03646207,41832.0,41821.0,0.14625055]
[1641913272567,0.04208902,41833.0,41823.0,1.3]
[1641913272568,0.03432401,41833.0,41823.0,1.3]
[1641913272768,0.059762,41831.0,41826.0,0.05975925]
[1641913272967,0.059762,41831.0,41828.0,0.39868449]
[1641913273170,0.059762,41831.0,41829.0,0.3743232]
[1641913273367,0.0158665,41838.0,41829.0,0.3743232]
[1641913273368,0.001,41846.0,41830.0,1.59655214]
[1641913273968,0.05115,41846.0,41840.0,0.31090116]
[1641913274169,0.05115,41846.0,41840.0,0.00128272]
[1641913274170,0.008348,41846.0,41840.0,0.00128272]
[1641913274771,0.14682192,41847.0,41841.0,0.00121074]
[1641913274772,0.05406892,41847.0,41841.0,0.00121074]
[1641913274968,1.1057,41864.0,41840.0,0.0571642]
[1641913275173,0.00739382,41862.0,41847.0,0.00127135]
[1641913275371,0.42857229,41869.0,41855.0,0.1]
[1641913275372,0.059707,41867.0,41855.0,0.1]
[1641913275819,0.19299731,41869.0,41856.0,0.00122139]
[1641913276021,2.8075186,41873.0,41868.0,0.00123989]
[1641913276219,0.0570186,41873.0,41868.0,0.00123989]
[1641913276421,0.20110878,41884.0,41868.0,0.23423427]
[1641913276619,0.00980672,41880.0,41872.0,0.00121456]
[1641913276821,0.10176069,41876.0,41875.0,0.00029815]
[1641913277019,0.00980672,41880.0,41875.0,0.04459815]
[1641913277219,0.09115584,41879.0,41875.0,0.04555497]
[1641913277418,0.09893932,41877.0,41873.0,1.17897771]
[1641913277619,0.09893932,41877.0,41868.0,0.03429843]
[1641913277620,0.4464517,41876.0,41868.0,0.03429843]
[1641913277820,0.0999,41870.0,41868.0,0.03429843]
[1641913278018,0.30484972,41861.0,41856.0,0.06017894]
[1641913278222,0.09450335,41865.0,41857.0,0.0443]
[1641913278522,0.15535253,41863.0,41857.0,0.0443]
[1641913278718,0.09999202,41861.0,41858.0,0.05]
[1641913278919,0.00129968,41867.0,41844.0,0.1461]
[1641913278920,0.10178424,41867.0,41844.0,0.1461]
[1641913279125,0.09825717,41865.0,41846.0,3.20982067]
[1641913279367,0.00123356,41860.0,41850.0,0.34429545]
[1641913279566,0.09422443,41858.0,41851.0,0.372396]
[1641913279767,0.09204984,41857.0,41851.0,0.372396]
[1641913280672,0.00332531,41869.0,41853.0,0.1]
[1641913280870,0.00939658,41867.0,41865.0,0.25785014]
[1641913281074,0.00204768,41869.0,41867.0,1.3]
[1641913281269,0.00939658,41872.0,41868.0,1.672396]
[1641913281572,0.00939658,41872.0,41869.0,1.05467372]
[1641913281767,0.09974943,41871.0,41869.0,1.05467372]
[1641913281967,0.00939658,41872.0,41869.0,1.05467372]
[1641913281968,0.00939658,41872.0,41869.0,0.72931856]
[1641913282170,0.10473948,41871.0,41869.0,0.372396]
[1641913282470,0.00939658,41872.0,41865.0,0.008]
[1641913282471,0.09169955,41868.0,41865.0,0.008]
[1641913282667,0.09114624,41867.0,41858.0,0.0443]
[1641913283033,0.10025906,41865.0,41858.0,0.0443]
[1641913283226,0.29888222,41864.0,41858.0,0.0443]
[1641913283428,0.10079294,41863.0,41858.0,0.006]
[1641913283629,0.09495882,41861.0,41858.0,0.006]
[1641913283825,0.14215816,41860.0,41858.0,0.006]
[1641913284026,0.14215816,41860.0,41854.0,0.00085546]
[1641913284226,0.09771316,41860.0,41854.0,0.00085546]
[1641913284425,0.09709317,41858.0,41854.0,0.00085541]
[1641913284627,0.15381034,41857.0,41855.0,0.372396]
[1641913284825,0.0980451,41856.0,41855.0,0.372396]
[1641913285225,0.0976108,41856.0,41855.0,0.372396]
[1641913285425,0.059728,41857.0,41855.0,0.011]
[1641913285626,0.059728,41857.0,41855.0,0.111]
[1641913285827,0.119459,41858.0,41856.0,0.372396]
[1641913286031,0.119459,41858.0,41855.0,0.111]
[1641913286235,0.119459,41858.0,41855.0,0.011]
[1641913286236,0.08290016,41857.0,41855.0,0.011]
[1641913286430,0.08290016,41857.0,41853.0,0.00075915]
[1641913286431,0.88712484,41856.0,41853.0,0.00075915]
[1641913286634,0.07770796,41854.0,41827.0,0.00128486]
[1641913286871,0.30686853,41845.0,41835.0,0.30868736]
[1641913287072,0.00125303,41842.0,41835.0,0.30868736]
[1641913287270,0.42619953,41844.0,41833.0,0.63195508]
[1641913287473,0.059759,41839.0,41834.0,0.372396]
[1641913287673,0.054759,41839.0,41834.0,0.372396]
[1641913288273,0.119517,41841.0,41834.0,0.372396]
[1641913288474,0.119517,41841.0,41826.0,0.1461]
[1641913288475,0.00124765,41838.0,41826.0,0.1461]
[1641913288676,0.32748446,41830.0,41826.0,0.1461]
[1641913288877,0.04237451,41829.0,41822.0,1.15]
[1641913289075,0.00120192,41828.0,41823.0,1.5006615]
[1641913289278,0.0443,41833.0,41830.0,0.00071609]
[1641913289475,0.00120817,41836.0,41831.0,0.372396]
[1641913289673,0.00120817,41836.0,41830.0,0.00071609]
[1641913289873,0.00120817,41836.0,41831.0,0.30058253]
[1641913290074,0.00120817,41836.0,41830.0,0.00071609]
[1641913290075,0.30857012,41836.0,41830.0,0.00071609]
[1641913290273,0.044445,41835.0,41830.0,0.00071609]
[1641913290527,0.00120817,41836.0,41831.0,0.00071607]
[1641913290720,0.00120817,41836.0,41833.0,0.09999999]
[1641913291120,0.059765,41837.0,41833.0,0.09999999]
[1641913291321,0.00939658,41838.0,41836.0,0.09999999]
[1641913291527,0.00939658,41838.0,41837.0,1.172396]
[1641913291721,0.00939658,41838.0,41837.0,1.49060957]
[1641913291920,0.00939658,41838.0,41837.0,0.41395541]
[1641913292122,0.00939658,41838.0,41837.0,1.0639554]
[1641913292319,0.00939658,41838.0,41837.0,0.41395541]
[1641913292520,0.01095,41844.0,41838.0,1.25939]
[1641913292521,0.059751,41842.0,41838.0,1.25939]
[1641913292721,0.01095,41844.0,41841.0,0.7995879]
[1641913292921,0.01095,41844.0,41843.0,1.67397307]
[1641913293123,0.01095,41844.0,41843.0,1.81827307]
[1641913293320,0.01095,41844.0,41843.0,0.517006]
[1641913293520,0.01095,41844.0,41843.0,0.557006]
[1641913293723,0.01095,41844.0,41843.0,0.457006]
[1641913293924,0.01095,41844.0,41843.0,0.0843]
[1641913294125,0.058088,41844.0,41843.0,0.0843]
[1641913294364,0.01095,41844.0,41843.0,0.0843]
[1641913294765,0.058088,41844.0,41841.0,0.00073464]
[1641913294963,0.01095,41844.0,41841.0,0.00073464]
[1641913295366,0.29920568,41843.0,41841.0,0.00073065]
[1641913295569,0.29920568,41843.0,41827.0,0.0443]
[1641913295570,1.09647745,41842.0,41827.0,0.0443]
[1641913295766,0.39222429,41832.0,41827.0,0.0443]
[1641913295966,0.1453122,41831.0,41827.0,0.0443]
[1641913296163,0.39222429,41832.0,41827.0,0.0443]
[1641913296164,0.09161929,41830.0,41827.0,0.0443]
[1641913296365,0.00128311,41838.0,41827.0,0.0443]
[1641913296366,0.09574636,41829.0,41827.0,0.0443]
[1641913296568,0.09171183,41827.0,41822.0,0.09999999]
[1641913296771,0.09171183,41827.0,41821.0,0.008]
[1641913296772,0.15865516,41826.0,41825.0,0.09999999]
[1641913296967,0.09876558,41825.0,41821.0,0.008]
[1641913297168,0.09929,41823.0,41822.0,0.372706]
[1641913297366,0.73611873,41822.0,41821.0,0.008]
[1641913297670,0.73611873,41822.0,41811.0,0.42]
[1641913297671,0.09929399,41816.0,41811.0,0.42]
[1641913297869,0.16514604,41815.0,41811.0,0.42]
[1641913298116,0.13984776,41814.0,41811.0,0.42]
[1641913298314,0.10447597,41812.0,41811.0,0.42]
[1641913298520,0.31133847,41828.0,41811.0,0.89270599]
[1641913298714,0.00122918,41818.0,41816.0,0.09999999]
[1641913298913,0.00122918,41818.0,41811.0,0.66620658]
[1641913298914,0.047138,41817.0,41811.0,0.66620658]
[1641913299113,0.06102118,41818.0,41813.0,0.09999999]
[1641913299316,0.3633824,41817.0,41811.0,0.42]
[1641913299515,0.00125714,41818.0,41811.0,0.42]
[1641913299715,0.04374386,41814.0,41811.0,0.42]
[1641913299913,0.16336486,41814.0,41811.0,0.1512]
[1641913300119,0.08673953,41813.0,41806.0,0.00342423]
[1641913300313,0.059809,41810.0,41806.0,0.00342423]
[1641913300518,0.42715531,41820.0,41809.0,0.0962756]
[1641913300713,0.42715531,41820.0,41817.0,0.09499999]
[1641913301317,0.047138,41819.0,41817.0,0.09499999]
[1641913302164,0.04885621,41818.0,41812.0,0.09499999]
[1641913302363,0.04885621,41818.0,41796.0,0.23918426]
[1641913302364,0.09611236,41817.0,41809.0,0.09499999]
[1641913302571,0.76333755,41820.0,41815.0,0.25126761]
[1641913302572,0.002,41820.0,41815.0,0.25126761]
[1641913302765,0.00041014,41822.0,41819.0,0.89499999]
[1641913302965,0.00041014,41822.0,41820.0,0.372706]
[1641913303364,0.00041014,41822.0,41819.0,0.09499999]
[1641913303567,0.33285407,41822.0,41819.0,0.09499999]
[1641913303765,0.00541014,41822.0,41819.0,0.09499999]
[1641913304468,0.00541014,41822.0,41820.0,9.0]
[1641913304665,0.00541014,41822.0,41821.0,1.222706]
[1641913304865,0.00041014,41822.0,41821.0,1.222706]
[1641913305068,0.00041014,41822.0,41821.0,1.94254445]
[1641913305528,0.02034658,41823.0,41822.0,1.3]
[1641913305529,0.01975672,41823.0,41822.0,1.3]
[1641913305720,0.01975672,41823.0,41822.0,1.96979327]
[1641913305920,0.01975672,41823.0,41822.0,2.06479326]
[1641913306920,0.00980672,41824.0,41823.0,0.95]
[1641913307126,0.00980672,41824.0,41823.0,0.967153]
[1641913307324,0.00961344,41826.0,41824.0,0.972853]
[1641913307823,0.00961344,41826.0,41825.0,0.74499999]
[1641913308124,0.00961344,41826.0,41825.0,0.44499999]
[1641913308324,0.00461344,41826.0,41825.0,1.46785299]
[1641913308529,0.06019214,41827.0,41826.0,1.677463]
[1641913308530,0.00041014,41827.0,41826.0,1.677463]
[1641913308725,1.4e-07,41827.0,41826.0,1.72302791]
[1641913308929,0.09494823,41827.0,41826.0,1.72302791]
[1641913309126,0.09494823,41827.0,41826.0,1.82302791]
[1641913309372,0.09494823,41827.0,41826.0,1.72302791]
[1641913309678,0.09494823,41827.0,41826.0,1.74702791]
[1641913309872,0.01095,41833.0,41826.0,1.74702791]
[1641913309873,0.059762,41845.0,41827.0,1.3]
[1641913310071,0.03424339,41841.0,41838.0,0.09499999]
[1641913310271,0.04894111,41841.0,41838.0,0.09499999]
[1641913310476,0.09949017,41839.0,41838.0,0.09499999]
[1641913310671,0.04894111,41841.0,41838.0,0.09499999]
[1641913310874,0.03957366,41838.0,41837.0,0.0443]
[1641913311377,0.059764,41839.0,41837.0,0.0443]
[1641913311576,0.01095,41844.0,41838.0,0.46785299]
[1641913311774,0.00058867,41840.0,41838.0,0.13929999]
[1641913312178,0.00058867,41840.0,41838.0,0.39392271]
[1641913312473,0.00058867,41840.0,41839.0,1.422853]
[1641913313618,0.01758867,41840.0,41839.0,1.424853]
[1641913313819,0.01758867,41840.0,41839.0,1.469153]
[1641913314019,0.01758867,41840.0,41839.0,1.719153]
[1641913314218,0.01758867,41840.0,41839.0,2.0387376]
[1641913314920,0.00058867,41840.0,41839.0,1.7867376]
[1641913315321,0.00045913,41842.0,41840.0,1.15]
[1641913315519,0.00045913,41842.0,41841.0,1.51215299]
[1641913315724,0.00045913,41842.0,41830.0,0.03601175]
[1641913315725,0.01095,41836.0,41830.0,0.03601175]
[1641913317377,0.00051727,41833.0,41830.0,0.28381792]
[1641913317576,0.00051727,41833.0,41823.0,0.00127744]
[1641913317577,0.03732761,41833.0,41831.0,0.09499999]
[1641913317774,0.03732761,41833.0,41823.0,0.00127744]
[1641913317974,0.04360594,41831.0,41827.0,0.09499999]
[1641913318176,0.16316394,41831.0,41827.0,0.09499999]
[1641913318375,0.059779,41830.0,41827.0,0.09499999]
[1641913318577,0.109779,41830.0,41827.0,0.09499999]
[1641913318974,0.04626521,41829.0,41823.0,0.00127744]
[1641913319175,0.119574,41829.0,41821.0,0.42]
[1641913319376,0.1246807,41829.0,41821.0,0.42]
[1641913319574,0.059791,41825.0,41821.0,0.42]
[1641913319977,0.15348591,41825.0,41821.0,0.42]
[1641913321029,0.10295676,41823.0,41821.0,0.42]
[1641913321227,0.12804433,41822.0,41821.0,0.42]
[1641913321428,0.05,41822.0,41821.0,0.42]
[1641913321627,0.05759095,41822.0,41821.0,0.42]
[1641913322427,0.05759095,41822.0,41821.0,0.2476]
[1641913322632,0.05759095,41822.0,41820.0,9.0]
[1641913322633,0.25,41821.0,41820.0,9.0]
[1641913322828,0.55,41821.0,41820.0,7.8818]
[1641913323030,1.42147067,41821.0,41820.0,2.46151151]
[1641913323229,1.42147067,41821.0,41809.0,0.0042257]
[1641913323230,0.05982132,41815.0,41809.0,0.00285145]
[1641913323429,0.55785399,41810.0,41809.0,0.00294185]
[1641913323630,0.98054899,41810.0,41809.0,0.00294185]
[1641913323831,0.55,41809.0,41801.0,0.01]
[1641913324030,0.56095,41809.0,41801.0,0.01]
[1641913324284,0.07076,41809.0,41808.0,0.99499999]
[1641913324480,0.01095,41809.0,41808.0,1.36769499]
[1641913324682,0.01095,41809.0,41808.0,1.36113414]
[1641913324882,0.12088448,41821.0,41809.0,1.3]
[1641913325083,0.13183448,41821.0,41816.0,0.08843914]
[1641913325286,1.376,41820.0,41816.0,0.08843914]
[1641913325484,0.372695,41819.0,41817.0,0.31618048]
[1641913325685,0.109794,41820.0,41816.0,0.08843914]
[1641913325884,0.00027789,41817.0,41816.0,0.38843914]
[1641913326386,0.00027789,41817.0,41816.0,0.3]
[1641913326785,0.00027789,41817.0,41816.0,1.27894243]
[1641913326985,0.00027789,41819.0,41816.0,0.98843914]
[1641913327185,1.28722789,41819.0,41804.0,0.00124813]
[1641913327384,1.28722789,41819.0,41815.0,0.08843914]
[1641913327585,1.28722789,41819.0,41808.0,0.08843914]
[1641913327586,0.059805,41813.0,41808.0,0.08843914]
[1641913327790,0.059805,41813.0,41812.0,0.08843914]
[1641913328228,0.059805,41813.0,41808.0,0.08843914]
[1641913328428,0.059805,41813.0,41807.0,0.00081115]
[1641913328633,0.119631,41811.0,41807.0,0.00081115]
[1641913328829,0.047459,41810.0,41807.0,0.00081115]
[1641913329029,0.09874289,41810.0,41807.0,0.00081115]
[1641913329229,1.276,41809.0,41807.0,0.00081115]
[1641913329429,0.372695,41808.0,41807.0,0.00082495]
[1641913329629,1.276,41808.0,41807.0,0.00082495]
[1641913329829,0.01495,41810.0,41807.0,0.00082495]
[1641913330030,0.01495,41810.0,41809.0,1.18843914]
[1641913330435,0.01495,41810.0,41809.0,1.45440124]
[1641913330833,0.01095,41810.0,41809.0,1.45440124]
[1641913331033,0.01095,41810.0,41809.0,1.56113414]
[1641913331235,0.00595,41810.0,41809.0,1.18843914]
[1641913331438,0.00595,41810.0,41809.0,0.08843914]
[1641913331635,0.49513104,41810.0,41809.0,0.08843914]
[1641913331878,0.49513104,41810.0,41808.0,0.08843914]
[1641913332284,0.44851695,41809.0,41807.0,0.00082495]
[1641913332478,0.77389797,41808.0,41807.0,0.00082495]
[1641913332677,0.77389797,41808.0,41801.0,0.01]
[1641913332678,1.276,41806.0,41801.0,0.01]
[1641913332879,0.0012463,41802.0,41801.0,0.01]
[1641913333081,0.2751053,41802.0,41801.0,0.01]
[1641913333278,0.2751053,41802.0,41799.0,0.42]
[1641913333279,0.2860553,41802.0,41799.0,0.42]
[1641913333479,0.35,41799.0,41796.0,0.09254148]
[1641913333682,0.00128759,41797.0,41796.0,0.09254148]
[1641913334081,0.05128759,41797.0,41796.0,0.09254148]
[1641913334283,0.0572376,41797.0,41796.0,0.08967244]
[1641913334480,0.0072376,41797.0,41796.0,0.08967244]
[1641913335081,0.0072376,41797.0,41796.0,0.0012333]
[1641913335280,0.33348592,41797.0,41796.0,0.0012333]
[1641913335543,0.73609278,41797.0,41796.0,0.0012333]
[1641913335839,0.74109278,41797.0,41796.0,0.0012333]
[1641913336036,2.01709278,41797.0,41796.0,0.0012333]
[1641913336435,2.02804278,41797.0,41796.0,0.0012333]
[1641913336637,2.02804278,41797.0,41794.0,0.00085615]
[1641913336638,0.8,41796.0,41794.0,0.00085615]
[1641913336935,0.89704345,41795.0,41794.0,0.00085615]
[1641913337135,1.64854184,41795.0,41794.0,0.00085615]
[1641913337336,0.37254184,41795.0,41794.0,0.08929529]
[1641913337537,0.00122384,41795.0,41794.0,0.08929529]
[1641913337738,0.004,41795.0,41794.0,0.08929529]
[1641913337937,0.004,41795.0,41794.0,0.08843914]
[1641913338839,0.004,41795.0,41794.0,0.33843914]
[1641913339139,0.119655,41796.0,41794.0,0.33843914]
[1641913339380,0.119655,41796.0,41794.0,0.07748914]
[1641913339579,0.183655,41796.0,41794.0,0.07748914]
[1641913339779,0.133655,41796.0,41794.0,0.35002397]
[1641913339980,0.133655,41796.0,41795.0,1.95710875]
[1641913339982,0.014,41796.0,41795.0,1.95710875]
[1641913340585,0.0219,41797.0,41796.0,1.3]
[1641913340779,0.0219,41797.0,41796.0,2.15214434]
[1641913341681,0.0219,41797.0,41796.0,2.17014434]
[1641913341980,0.0219,41797.0,41796.0,2.21444434]
[1641913342781,0.0219,41797.0,41796.0,2.19644434]
[1641913343537,0.4719,41797.0,41796.0,0.41725]
[1641913343732,2.04637022,41797.0,41796.0,0.014]
[1641913343934,1.67050764,41797.0,41794.0,0.00070479]
[1641913344131,0.00120669,41795.0,41794.0,0.00070479]
[1641913344332,0.32252469,41795.0,41794.0,0.00070479]
[1641913344531,0.37252469,41795.0,41794.0,0.66779427]
[1641913344731,0.05120669,41795.0,41794.0,0.40070479]
[1641913344932,0.00120669,41795.0,41794.0,0.00070479]
[1641913345133,0.00120669,41795.0,41793.0,0.42]
[1641913345731,0.00520669,41795.0,41793.0,0.42]
[1641913346135,0.321318,41794.0,41793.0,0.42]
[1641913346532,1.647318,41794.0,41793.0,0.42]
[1641913346782,1.697318,41794.0,41793.0,0.42]
[1641913346982,0.42258376,41794.0,41793.0,0.42]
[1641913347282,0.32258376,41794.0,41793.0,0.42]
[1641913347781,0.32758376,41794.0,41793.0,0.42]
[1641913348184,2.10552688,41794.0,41793.0,0.42]
[1641913348582,0.00127795,41792.0,41791.0,0.00145726]
[1641913348885,1.99859595,41792.0,41791.0,0.0007265]
[1641913349081,1.59859595,41792.0,41791.0,0.0007265]
[1641913349285,1.276,41788.0,41785.0,0.00290642]
[1641913349483,0.179599,41784.0,41776.0,0.00128618]
[1641913349685,0.059856,41781.0,41776.0,0.00128618]
[1641913349884,0.003,41792.0,41780.0,0.07748914]
[1641913350082,0.003,41792.0,41777.0,0.37295]
[1641913350083,0.003,41792.0,41790.0,0.07748914]
[1641913350282,0.321318,41791.0,41790.0,0.07748914]
[1641913350541,0.321318,41791.0,41782.0,0.27780952]
[1641913350542,0.371318,41791.0,41782.0,0.27780952]
[1641913350740,0.371318,41791.0,41790.0,0.07748914]
[1641913350939,0.059848,41789.0,41786.0,0.07748914]
[1641913351138,0.059848,41789.0,41777.0,0.45876726]
[1641913351139,1.647318,41791.0,41776.0,0.07877532]
[1641913351142,0.00668921,41787.0,41776.0,0.07877532]
[1641913351339,1.28268921,41787.0,41776.0,0.07877532]
[1641913351543,0.059856,41781.0,41776.0,0.37970967]
[1641913351738,0.059856,41781.0,41776.0,0.38470967]
[1641913351939,0.059856,41781.0,41777.0,0.32920922]
[1641913352139,0.059853,41782.0,41780.0,0.07748914]
[1641913352539,0.05,41784.0,41780.0,0.07748914]
[1641913352739,1.276,41782.0,41776.0,0.00714255]
[1641913352941,0.00125681,41778.0,41777.0,0.07748914]
[1641913353140,0.57257481,41778.0,41776.0,0.00214255]
[1641913353342,0.77255892,41777.0,41776.0,0.00094255]
[1641913353540,1.98716864,41777.0,41776.0,8.618e-05]
[1641913353741,1.98189137,41777.0,41776.0,8.618e-05]
[1641913353941,2.03189137,41777.0,41776.0,8.618e-05]
[1641913354143,2.0385341,41777.0,41776.0,8.618e-05]
[1641913354380,1.98770876,41777.0,41776.0,8.618e-05]
[1641913355182,1.98948323,41777.0,41776.0,8.618e-05]
[1641913355482,1.59855892,41777.0,41776.0,8.618e-05]
[1641913355683,1.60155892,41777.0,41776.0,8.618e-05]
[1641913355880,1.60155892,41777.0,41776.0,0.07757532]
[1641913356085,0.32555892,41777.0,41776.0,0.07757532]
[1641913356282,0.003,41777.0,41776.0,0.35705101]
[1641913356482,0.003,41777.0,41776.0,1.53000101]
[1641913356983,0.00121196,41786.0,41776.0,1.25052532]
[1641913357181,0.00121196,41786.0,41781.0,0.25798265]
[1641913357382,0.1197,41784.0,41781.0,0.25798265]
[1641913357582,0.00124211,41782.0,41776.0,8.618e-05]
[1641913357782,0.321318,41781.0,41776.0,8.618e-05]
[1641913358044,1.276,41780.0,41779.0,0.07748914]
[1641913358237,1.597318,41780.0,41779.0,0.07748914]
[1641913358437,1.707179,41780.0,41776.0,8.618e-05]
[1641913358636,1.657178,41779.0,41776.0,0.07757532]
[1641913358836,0.381178,41779.0,41776.0,0.07757532]
[1641913359339,1.657178,41779.0,41776.0,0.07757532]
[1641913359536,0.059861,41778.0,41776.0,0.07757532]
[1641913359737,0.321318,41777.0,41776.0,0.08157532]
[1641913359938,1.647318,41777.0,41776.0,0.00408618]
[1641913360138,0.371318,41777.0,41776.0,0.00408618]
[1641913360338,0.371318,41777.0,41775.0,0.27253339]
[1641913360538,0.05,41777.0,41775.0,0.26253339]
[1641913360737,0.06186,41779.0,41775.0,0.26253339]
[1641913360738,0.05,41778.0,41775.0,0.26253339]
[1641913360938,0.05,41778.0,41777.0,0.07748914]
[1641913361239,0.24352706,41807.0,41777.0,0.80631801]
[1641913361240,0.01095,41797.0,41777.0,0.80631801]
[1641913361438,0.00129007,41796.0,41786.0,1.55054625]
[1641913361637,0.059836,41793.0,41786.0,1.96779625]
[1641913361894,0.00129007,41796.0,41786.0,0.0443]
[1641913361895,0.059841,41788.0,41786.0,0.0443]
[1641913362091,0.32176425,41787.0,41786.0,0.0443]
[1641913362492,0.00044625,41787.0,41786.0,0.3443]
[1641913362691,0.10507611,41787.0,41786.0,0.3443]
[1641913362891,0.059841,41788.0,41786.0,0.0443]
[1641913363093,0.371318,41787.0,41786.0,0.0443]
[1641913363291,0.46816137,41787.0,41786.0,0.12178914]
[1641913363494,0.46816137,41787.0,41786.0,0.52178914]
[1641913363691,0.47016137,41787.0,41786.0,0.52378914]
[1641913363891,0.14884337,41787.0,41786.0,0.52378914]
[1641913364594,0.14884337,41787.0,41786.0,0.12378914]
[1641913364791,0.47016137,41787.0,41786.0,0.12378914]
[1641913364991,0.47016137,41787.0,41786.0,0.12178914]
[1641913364992,0.46816137,41787.0,41786.0,0.12178914]
[1641913365191,0.14684337,41787.0,41786.0,0.12178914]
[1641913365830,0.14884337,41787.0,41786.0,0.12178914]
[1641913366329,0.14884337,41787.0,41786.0,0.62178914]
[1641913366529,0.47016137,41787.0,41786.0,0.12178914]
[1641913366929,0.46816137,41787.0,41786.0,0.12178914]
[1641913367329,0.46816137,41787.0,41786.0,0.07748914]
[1641913367531,0.05,41786.0,41780.0,0.07748914]
[1641913367731,1.276,41783.0,41780.0,0.07748914]
[1641913367930,1.69919022,41782.0,41780.0,0.07748914]
[1641913368130,0.09181216,41780.0,41779.0,0.00085638]
[1641913368329,2.03724118,41780.0,41779.0,0.00171273]
[1641913368531,0.10223668,41778.0,41770.0,0.00342615]
[1641913368730,0.00129025,41771.0,41770.0,0.00342615]
[1641913369384,0.37260825,41771.0,41770.0,0.00342615]
[1641913369583,0.48248325,41771.0,41770.0,0.08091529]
[1641913369786,0.43548325,41771.0,41770.0,0.72748914]
[1641913369986,0.053,41771.0,41770.0,0.72748914]
[1641913370284,0.003,41771.0,41770.0,0.72748914]
[1641913371083,1.32617352,41775.0,41770.0,0.72748914]
[1641913371284,0.119734,41773.0,41766.0,0.07748914]
[1641913371484,0.059867,41773.0,41766.0,0.07748914]
[1641913371683,0.059867,41773.0,41770.0,0.001]
[1641913371886,0.321318,41772.0,41770.0,0.001]